Cogmind - Beta 14 @@@ ROGUE MODE // 2024.11.26 @ 20:55:19 Player: Vineheart01 Result: Destroyed by as-65369 with Assembled Blade Performance ------------- Evolutions (1) 500 Regions Visited (3) 600 Robots Destroyed (38) 190 Value Destroyed (1046) 1046 Prototype IDs (0) 0 Alien Tech Used (0) 0 Bonus (0) 0 TOTAL SCORE: 2336 Bonus ------- None Cogmind --------- Core Integrity 0/400 Matter 240/300 Energy 265/265 System Corruption 0% Temperature Cool (0) Movement Walking (190) Ox1 Location -9/Mines Parts ------- > --- POWER (1) -------- Improved Ion Engine > --- PROPULSION (2) --- Aluminum Leg Aluminum Leg > --- UTILITY (4) ------ Large Storage Unit Advanced Visual Processing Unit Propulsion Shielding Light Armor Plating > --- WEAPON (2) ------- Mini Grenade Launcher Katana > --- INVENTORY (15) --- Improved Ion Engine Light Treads Armored Treads Large Storage Unit Advanced Visual Processing Unit Experimental Sensor Array Signal Interpreter Particle Gun Datajack Katana Peak State ------------ > --- POWER ------------ Ion Engine > --- PROPULSION ------- Armored Treads Armored Treads > --- UTILITY ---------- Large Storage Unit Advanced Visual Processing Unit Shield Generator Hacking Suite > --- WEAPON ----------- Katana Katana > --- INVENTORY -------- Light Ion Engine Improved Ion Engine Armored Treads Armored Treads Large Storage Unit Advanced Visual Processing Unit Advanced Visual Processing Unit Signal Interpreter Medium Laser Particle Gun EMP Blaster EMP Blaster Mini Grenade Launcher Datajack Katana [Rating: 25] Favorites ----------- Power Light Nuclear Core Engine Ion Engine Power Core Light Nuclear Core Propulsion Aluminum Leg Treads Armored Treads Leg Aluminum Leg Utility Advanced Visual Processing Unit Device Improved Terrain Scanner Storage Large Storage Unit Processor Advanced Visual Processing Unit Hackware Hacking Suite Protection Hardened Light Armor Plating Weapon Katana Energy Gun Medium Laser Ballistic Gun Assault Rifle Launcher EMP Blaster Slashing Weapon Katana Special Melee Weapon Datajack Build | -11 -10 -9 -9 ------- Run | Yrd Mat Mat Min Slots Evolved 2 | . . 2 . Power . | . . . . Propulsion . | . . . . Utility 2 | . . 2 . Weapon . | . . . . Parts Attached 64 | 8 9 19 28 Power 10 | 1 3 2 4 Engine 7 | 1 1 1 4 Core 3 | . 2 1 . Reactor . | . . . . Propulsion 15 | 3 2 5 5 Treads 6 | 2 . 2 2 Leg 9 | 1 2 3 3 Wheel . | . . . . Hover . | . . . . Flight . | . . . . Utility 13 | 2 1 5 5 Device 3 | 1 . 1 1 Storage 2 | 1 1 . . Processor 3 | . . 2 1 Hackware 1 | . . 1 . Protection 4 | . . 1 3 Artifact . | . . . . Weapon 26 | 2 3 7 14 Energy Gun 7 | . 1 2 4 Energy Cannon . | . . . . Ballistic Gun 3 | 2 1 . . Ballistic Cannon . | . . . . Launcher 4 | . . . 4 Special Weapon . | . . . . Impact Weapon . | . . . . Slashing Weapon 10 | . . 4 6 Piercing Weapon . | . . . . Special Melee Weapon 2 | . 1 1 . Unidentified Prototypes . | . . . . Parts Lost 16 | . 2 4 10 Power 3 | . 1 1 1 Propulsion 5 | . 1 1 3 Utility 4 | . . 2 2 Weapon 4 | . . . 4 Highest Loss Streak 10 | . 1 1 10 To Critical Strikes . | . . . . Average Slot Usage (%) 98 | . 99 98 95 Engine 5 | . 4 3 9 Core 6 | . 9 7 . Treads 14 | . 24 6 18 Leg 9 | . 3 14 2 Device 9 | . 14 7 8 Storage 11 | . 14 11 11 Processor 8 | . . 13 11 Hackware 4 | . . 10 . Protection 2 | . . . 11 Energy Gun 1 | . 3 . 1 Ballistic Gun 6 | . 20 . . Launcher 1 | . . . 7 Slashing Weapon 11 | . . 19 12 Special Melee Weapon 1 | . 4 1 . Peak Build Rating 25 | 9 11 25 25 Average Rating 18 | 5 10 22 21 On Entrance 10 | . 9 11 23 Naked Turns . | . . . . Heaviest Build 45 | 15 30 34 45 Greatest Support 40 | 40 40 40 40 Greatest Overweight (x) 4 | 4 1 1 2 Average Overweight (x) . | . . . . Largest Inventory Capacity 15 | 8 15 15 15 Average Capacity 13 | 7 9 15 15 Most Carried 15 | 4 9 15 15 Average Carried 11 | 3 7 13 13 Final Capacity 15 | 8 15 15 15 Final Carried 15 | 4 8 15 10 Class Distribution -------------------- 92% | Mutant 7% | Scavenger-Mutant Dominant Class ---------------- Mutant | -10/Materials Mutant | -9/Materials Mutant | -9/Mines Resources | -11 -10 -9 -9 ----------- Run | Yrd Mat Mat Min Matter Collected 950 | 237 284 211 218 Remotely . | . . . . Salvage Created 1512 | 43 290 765 414 Parts 91 | 8 20 38 25 Haulers Intercepted 3 | . . 3 . Recyclers Shooed . | . . . . Parts Field Recycled . | . . . . Retrieved Matter . | . . . . Parts Self-Destructed . | . . . . Prevented . | . . . . Kills | -11 -10 -9 -9 ------- Run | Yrd Mat Mat Min Combat Hostiles Destroyed 29 | . 9 11 9 Melee 13 | . . 10 3 Guns 13 | . 9 1 3 AOE 3 | . . . 3 Classes Destroyed 12 | 1 2 6 3 Builder 1 | . . 1 . Tunneler 3 | 2 . . 1 Hauler 3 | . . 3 . Recycler 1 | . . . 1 Operator 1 | . . 1 . Watcher 1 | . . 1 . Swarmer 5 | . 3 . 2 Grunt 14 | . 6 5 3 Brawler 1 | . . . 1 Duelist 1 | . . 1 . Sentry 7 | . . 5 2 Assembled 1 | . . . 1 Best Kill Streak 3 | 2 3 3 2 Combat Bots Only 3 | . 3 3 2 Max Kills in Single Turn 2 | 1 1 1 2 Gunslinging . | . . . . Exploded 2 | . . . 2 Melee 1 | . . 1 1 Uniques/NPCs Destroyed . | . . . . Combat | -11 -10 -9 -9 -------- Run | Yrd Mat Mat Min Hostile Shots Fired 218 | . 73 39 106 Missed 51 | . 15 10 26 Damage Taken 3383 | . 663 348 2372 Core 563 | . 132 56 375 Absorbed by Shields 304 | . . 88 216 Redirected to Shielding 8 | . . . 8 Regen/Repaired (Parts) 62 | . 35 27 . Core Remaining (%) 73 | 100 47 . . Volleys Fired 53 | 3 31 7 12 Largest 2 | 2 2 2 2 Hottest 115 | 40 70 115 115 Shots Fired 101 | 6 62 14 19 Gun 96 | 6 62 14 14 Cannon . | . . . . Launcher 5 | . . . 5 Special . | . . . . Kinetic 60 | 6 52 2 . Thermal 36 | . 10 12 14 Explosive 3 | . . . 3 Electromagnetic 2 | . . . 2 Robot Hit Streak 12 | 2 7 9 12 Robot Miss Streak 2 | 1 2 2 1 Penetration Max . | . . . . Secondary Targets . | . . . . Shots Hit Robots 130 | 3 41 53 33 Core Hits 56 | 2 16 20 18 Critical Kills . | . . . . Critical Parts Destroyed . | . . . . Critical Strikes 10 | . . 7 3 Burn 2 | . . . 2 Sever 8 | . . 7 1 Melee Attacks 84 | . 2 65 17 Impact . | . . . . Slashing 79 | . . 62 17 Piercing . | . . . . Sneak Attacks 13 | . 1 9 3 Combat Hostiles 2 | . . 1 1 Follow-up Attacks 8 | . . 6 2 Damage Inflicted 3361 | 41 471 1633 1216 Guns 856 | 41 471 158 186 Cannons . | . . . . Explosions 478 | . . . 478 Melee 2024 | . . 1475 549 Ramming 3 | . . . 3 Kinetic 461 | 41 396 24 . Thermal 517 | . 75 134 308 Explosive 250 | . . . 250 Electromagnetic 106 | . . . 106 Impact . | . . . . Slashing 2024 | . . 1475 549 Piercing . | . . . . Highest Corruption 1 | . 1 . . Average Corruption 1 | . 1 . . Corruption Purged . | . . . . Corruption Blocked . | . . . . Effects 7 | . 7 . . Message Errors 3 | . 3 . . Matter Fused 1 | . 1 . . Data Loss (minor) 3 | . 3 . . Overload Shots . | . . . . Overflow Damage 109 | . . 30 79 Projectiles . | . . . . Explosions 8 | . . . 8 Melee 101 | . . 30 71 Knockbacks . | . . . . Impact . | . . . . Kinetic . | . . . . Secondary . | . . . . Self-Inflicted Damage 105 | . . . 105 Shots 4 | . . . 4 Rammed 1 | . . . 1 Targets Rammed 1 | . . . 1 Kicked . | . . . . Crushed . | . . . . Highest Temperature 234 | . 123 153 234 Average Temperature 58 | . 45 56 75 Received Heat Transfer 604 | . 345 157 102 Siege Activations . | . . . . Robots Corrupted . | . . . . Combat Hostiles . | . . . . Parts Fried . | . . . . Impact Corruptions . | . . . . Robots Melted . | . . . . Combat Hostiles . | . . . . Parts Melted 3 | . . 1 2 Heat Transferred 1371 | . 222 370 779 Parts Sabotaged . | . . . . Parts Stolen . | . . . . Parts Stripped . | . . . . Power Chain Reactions 2 | . . . 2 Alert | -11 -10 -9 -9 ------- Run | Yrd Mat Mat Min Peak Influence 188 | 10 136 174 188 Initial 57 | . 6 57 38 Average 65 | 3 63 59 94 Maximum Alert Level . | . . . . Low Security (%) 100 | 100 100 100 100 Level 1 . | . . . . Level 2 . | . . . . Level 3 . | . . . . Level 4 . | . . . . Level 5 . | . . . . High Security . | . . . . Max Security . | . . . . Squads Dispatched 3 | . 2 1 . Investigation . | . . . . Extermination . | . . . . Reinforcement 3 | . 2 1 . Assault . | . . . . Garrison . | . . . . Intercept . | . . . . Searches Triggered . | . . . . Construction Impeded . | . . . . Haulers Reinforced . | . . . . Active Scanning Responses . | . . . . Cargo Convoy Interrupts . | . . . . Stealth | -11 -10 -9 -9 --------- Run | Yrd Mat Mat Min Distress Signals 2 | . 1 1 . Communications Jammed . | . . . . Distress Signals . | . . . . Times Spotted 64 | . 21 27 16 Peak Tracking Total 10 | . 4 4 10 Tactical Retreats 6 | . . 2 4 Traps | -11 -10 -9 -9 ------- Run | Yrd Mat Mat Min Traps Triggered 1 | . 1 . . Indirectly . | . . . . Trap Hack Attempts . | . . . . Triggered . | . . . . Disarmed . | . . . . Reprogrammed . | . . . . Reused . | . . . . Traps Extracted . | . . . . Installed . | . . . . Triggered . | . . . . Machines | -11 -10 -9 -9 ---------- Run | Yrd Mat Mat Min Machines Disabled . | . . . . Max in Single Turn . | . . . . Machines Repaired . | . . . . Machines Dismantled . | . . . . Machines Sabotaged . | . . . . Overloaded Fab Kills . | . . . . Hacking | -11 -10 -9 -9 --------- Run | Yrd Mat Mat Min Machines Accessed 11 | . 4 7 . Terminals 8 | . 3 5 . Fabricators . | . . . . Repair Stations 3 | . 1 2 . Recycling Units . | . . . . Scanalyzers . | . . . . Garrison Access . | . . . . Total Hacks 33 | . 15 18 . Successful 24 | . 9 15 . Failed 9 | . 6 3 . Catastrophic 1 | . . 1 . Database Lockouts . | . . . . Manual 5 | . 2 3 . Terminals 24 | . 12 12 . Fabricators . | . . . . Repair Stations 9 | . 3 6 . Recycling Units . | . . . . Scanalyzers . | . . . . Garrison Access . | . . . . Terminal Hacks 16 | . 7 9 . Record 1 | . . 1 . Branch Access Points 2 | . 1 1 . Alert Level 1 | . . 1 . Unreport Threat 1 | . . 1 . Locate Traps 3 | . 2 1 . Dispatch Records 2 | . 1 1 . Investigation Status 1 | . . 1 . Hauler Manifests 2 | . 1 1 . Zone Layout 3 | . 2 1 . Fabricator Hacks . | . . . . Repair Station Hacks 7 | . 2 5 . Scan Component 4 | . 1 3 . Repair 2 | . 1 1 . Refit 1 | . . 1 . Recycling Unit Hacks . | . . . . Scanalyzer . | . . . . Garrison Access Hacks . | . . . . Unauthorized Hacks 1 | . . 1 . Terminals 1 | . . 1 . Detonate 1 | . . 1 . Fabricators . | . . . . Repair Stations . | . . . . Recycling Units . | . . . . Scanalyzers . | . . . . Garrison Access . | . . . . Data Cores Recovered 1 | . . 1 . Used 1 | . . 1 . Hacking Detections 9 | . 4 5 . Full Trace Events . | . . . . Feedback Events . | . . . . Feedback Blocked . | . . . . Robot Schematics Acquired . | . . . . Robots Built . | . . . . Authchips . | . . . . Time . | . . . . Total Robot Build Rating . | . . . . Part Schematics Acquired . | . . . . Parts Built . | . . . . Authchips . | . . . . Time . | . . . . Total Part Build Rating . | . . . . Parts Repaired 2 | . 1 1 . Time 76 | . 38 38 . Parts Recycled . | . . . . Recycled Matter . | . . . . Retrieved Matter . | . . . . Retrieved Components . | . . . . Parts Scanalyzed . | . . . . Part Schematics Acquired . | . . . . Parts Damaged . | . . . . Bothacking | -11 -10 -9 -9 ------------ Run | Yrd Mat Mat Min Used RIF Installer . | . . . . Robots Hacked 3 | . 1 2 . Non-combat 2 | . 1 1 . Combat 1 | . . 1 . Robot Hacks Applied 4 | . 1 3 . parse_system 2 | . 1 1 . no_distress 1 | . . 1 . check_alert 1 | . . 1 . Relay Couplers Released . | . . . . Fabnet Peak Effective % . | . . . . Robots Rewired . | . . . . Allies Hacked . | . . . . Hacks Repelled . | . . . . Allies | -11 -10 -9 -9 -------- Run | Yrd Mat Mat Min Total Allies . | . . . . Largest Group . | . . . . Highest-Rated Group . | . . . . Highest-Rated Ally . | . . . . Total Orders . | . . . . Ally Attacks . | . . . . Total Damage . | . . . . Kills . | . . . . Allies Corrupted . | . . . . Allies Melted . | . . . . Intel | -11 -10 -9 -9 ------- Run | Yrd Mat Mat Min Robot Analysis Total . | . . . . Derelict Logs Recovered 1 | . . . 1 Drone Launches . | . . . . Drone Recoveries . | . . . . Exploration | -11 -10 -9 -9 ------------- Run | Yrd Mat Mat Min Turns Passed 3848 | 122 1126 1817 783 Spaces Moved 1554 | 63 436 764 291 Core 8 | 8 . . . Treads 947 | 55 362 287 243 Legs 599 | . 74 477 48 Wheels . | . . . . Hover . | . . . . Flight . | . . . . Fastest Speed 50 | 50 160 170 170 Average Speed 182 | 157 165 182 211 Slowest Speed 260 | 250 240 250 260 Overloaded Moves . | . . . . Propulsion Burnouts . | . . . . Robots Hopped . | . . . . Cave-ins Triggered 1 | . . . 1 Exploration Rate (%) 49 | 4 76 55 61 Regions Visited 3 Branch Regions 1 Pre-discovered Areas . | . . . . Known Exits Taken 1 | . . 1 . Unknown Exits Taken 2 | 1 1 . . Scrap Searched 1 | . . . 1 Spaces Dug 14 | . . 14 . Terrain Destroyed 40 | . . 14 26 Melee 14 | . . 14 . Projectile . | . . . . AOE 26 | . . . 26 Terrain Rammed . | . . . . Walls Destroyed . | . . . . Machines Disabled . | . . . . Actions | -11 -10 -9 -9 --------- Run | Yrd Mat Mat Min Total 2350 | 77 777 1086 410 Wait 562 | . 288 218 56 Move 1551 | 62 435 763 291 Hop . | . . . . Pick Up 28 | 3 8 14 3 Fast Attach 18 | 8 2 5 3 Attach 12 | . 2 3 7 Detach 1 | 1 . . . Swap 34 | . 5 11 18 Drop 18 | . 4 9 5 Fire 53 | 3 31 7 12 Melee 72 | . 2 56 14 Ram . | . . . . Kick . | . . . . Crush 1 | . . . 1 Escape Stasis . | . . . . Rewire . | . . . . Trap . | . . . . Miscellaneous . | . . . . Route ------- -11/Scrapyard -10/Materials (discovered 4 exits: *Mat x2 / *Min x2) -9/Materials (discovered 4 exits: [*Mat x2] / *Min x2) -9/Mines History --------- Turn | Location | Event 23 | -11/Scrapyard | Discovered new exit (range 15) 123 | -11/Scrapyard | Entered Materials 314 | -10/Materials | Build established: Mutant 523 | -10/Materials | Discovered new exit (range 4) 709 | -10/Materials | Repaired Lgt. Nuclear Core 888 | -10/Materials | Discovered new exit (range 10) 1041 | -10/Materials | Discovered new exit (range 13) 1163 | -10/Materials | Identified exit to Mines 1249 | -10/Materials | Entered another Materials area 1249 | -9/Materials | Evolved 2 slots: Utility x2 1252 | -9/Materials | Discovered new exit (range 10) 1280 | -9/Materials | Identified exit to Mines 2091 | -9/Materials | Repaired Lgt. Nuclear Core 2179 | -9/Materials | Discovered new exit (range 18) 2804 | -9/Materials | Discovered new exit (range 10) 3066 | -9/Materials | Entered Mines 3099 | -9/Mines | Learned location of 1 exit from Proximity Caves 3572 | -9/Mines | Found a damaged Exp. Sensor Array with a note attached 3577 | -9/Mines | Found Prototype Device 3666 | -9/Mines | Core integrity fell below 50% 3689 | -9/Mines | Crushed by falling debris 3702 | -9/Mines | Core integrity fell below 20% 3738 | -9/Mines | Lost 10 parts (1p3n2u4w) 3831 | -9/Mines | Assembled infested the area 3849 | -9/Mines | Destroyed by as-65369 with Assembled Blade Last Messages --------------- K-01 Serf collects debris. U-05 Engineer lays Concrete. The unstable cave ceiling collapses. U-05 Engineer lays Concrete. R-06 Scavenger collects Med. Matter Pod. U-05 Engineer lays Concrete. K-01 Serf collects debris. U-05 Engineer builds a Wall. K-01 Serf collects debris. U-05 Engineer lays Concrete. K-01 Serf collects debris. R-06 Scavenger collects Flight Unit. R-06 Scavenger collects Lgt. Assault Rifle. ALERT: Infestation in the mines, dispatching Demolisher response squad. K-01 Serf collects debris. as-95877 destroyed. as-65369 sneak attacks. K-01 Serf collects debris. The unstable cave ceiling collapses. T-07 Excavator destroyed. Map ----- +----------------------------------------------------+ | # #?????????### #???####???# ##?????????????? | | # #???????????# ##?## ##??# ##????????????? | | # #########???# #?# ##?## #????????????? | | # ##### ### #### ## """" ????? | | # ## """" ????? | | ####### #### # ## ######### """" ????? | | ###### # ! ! #??????? ???? | | ##%! % ####????????"""" ?? | | ] ! ####*#!# # #?????????""" #? | | # ## # # ###????????"??? #? | | # ### # #???????????????? | | # ## ## # #?????###???????? | | ## ## ### ###?## ##??????? | | ?## #### # #### # ### ###????? | | ??#######?## # ## # ## #????? | | ?????????## ## ## #????? | | ????????## # # #?????? | | ??????### # ###?????? | | ??????# # # # # #########???????? | | ??????# ######### # # ?? #????????? | | ??????# ### # #???## ## # ##? ????????? | | ??????###?# #???# ## ## ?? #???????? | | ??????????# ##???# #### ## ?????? #???????? | | ??????????### ######## ## #????????##???????? | | ????????????###### #r # #??????????????? | | ????????????????# @a #??????????????? | | ??????? k ##??????????????? | | ?????? #### % ???????????? | | ????????????????# ## a% #### C! ???????? | | ????????????????## #?# ! # ??????# #?????? | | ?????????????????###??## ????????????? | | ???????????????????????### % ?# ??????????? | | ??????????????????????????# ! ??? #????????? | | ??????????????????????????? #????????????? | | ???????????????????????????# #????????????? | | ??????????????????????????? a ???????????? | | ??????????????????????????? ###??????????? | | ???????????????????????????# [ ##????????????? | | ???????????????????????????# ##?????????????? | | ???????????????????????????### ##??????????????? | | ?????????????????????????????? #???????????????? | | ?????????????????????????????? ???????????????? | | ?????????????????????????????? ???????????????? | | ?????????????????????????????? ????????????????? | | ????????????????????????????????????????????????? | | ????????????????????????????????????????????????? | | ????????????????????????????????????????????????? | | ????????????????????????????????????????????????? | | ????????????????????????????????????????????????? | | ????????????????????????????????????????????????? | +----------------------------------------------------+ Best States ------------- Heat Dissipation 28 Energy Generation 14 Energy Capacity 265 Matter Stores 300 Matter Capacity 300 Sight Range 20 Terrain Scan Range 16 Terrain Scan Density 10 Armor Coverage 150 Propulsion Shielding 33 Evasion (%) 40 Recoil Reduction 2 Offensive Hacking 10 Item Schematics ----------------- None Robot Schematics ------------------ None Fabricated ------------ Nothing Alien Tech Used ----------------- None Achievements -------------- Dynamic Key True Hacker Unlikely Earthworm Challenges ------------ None Game ------ Seed MetafieldEtherialGravjet Manual? 0 Play Time 00:45:30 Cumulative 9.7 hours Start 2024.11.26 @ 20:07:56 End 2024.11.26 @ 20:55:19 Sessions 1 Manual Loads 0 Difficulty Rogue Special Mode None Game No. 10 Rogue 10 Adventurer 0 Explorer 0 Win Type - Total 0 Types 0/0/0/0/0/0/0/0/0 Lore% 4 Gallery% 15 Achievement% 17 Wizard Run 0 Options --------- Layout 0 ASCII 0 Keyboard 0 Movement Mouse Keybinds 0 Fullscreen 2 Font 18/SmallcapsGlow Map View 76x50 Zoom Use 2% Tactical HUD 0 Map Filters NONE Filters NONE Steam 1 RUN: 4497375f-baf5-44af-a61a-8934eb832b8c